fUSD/lending_fUSD_20240122
["ID","MTS","AMOUNT","RATE_DAILY","PERIOD"]
[312528675,1705942338496,-500.0,0.0005726,7]
[312528676,1705942338505,-500.0,0.0005726,120]
[312528677,1705942338515,-508.5,0.0005726,120]
[312528678,1705942338524,-500.0,0.0005726,120]
[312528679,1705942338534,-669.88,0.0005726,120]
[312528680,1705942338544,-500.0,0.0005726,120]
[312528681,1705942338553,-1260.2,0.0005726,120]
[312528682,1705942338563,-1310.32,0.0005726,120]
[312528683,1705942338573,-666.0,0.0005726,120]
[312528684,1705942338583,-1375.16,0.0005726,120]
[312528685,1705942338593,-500.0,0.0005726,120]
[312528686,1705942338602,-777.93,0.0005726,120]
[312528687,1705942338611,-500.0,0.0005726,120]
[312528688,1705942338621,-500.0,0.0005726,120]
[312528689,1705942338630,-780.67,0.0005726,120]
[312528690,1705942338639,-609.64,0.0005726,120]
[312528691,1705942338649,-500.0,0.0005726,120]
[312528692,1705942338658,-952.88,0.0005726,120]
[312528693,1705942338669,-1288.87,0.0005726,120]
[312528694,1705942338678,-614.46,0.0005726,120]
[312528695,1705942338688,-589.89,0.0005726,120]
[312528696,1705942338696,-500.0,0.0005726,120]
[312528697,1705942338706,-508.24,0.0005726,120]
[312528698,1705942338715,-1173.95,0.0005726,120]
[312528699,1705942338723,-1099.97,0.0005726,120]
[312528700,1705942338733,-891.26,0.0005726,120]
[312528701,1705942338741,-500.0,0.0005726,120]
[312528702,1705942338750,-1741.05,0.0005726,120]
[312528703,1705942338760,-869.66,0.0005726,120]
[312528704,1705942338769,-983.11,0.0005726,120]
[312528705,1705942338778,-588.97,0.0005726,120]
[312528706,1705942338788,-822.9,0.0005726,120]
[312528707,1705942338797,-5629.53,0.0005726,120]
[312528708,1705942338805,-500.0,0.0005726,120]
[312528709,1705942338814,-1258.02,0.0005726,120]
[312528710,1705942338823,-508.55,0.0005726,120]
[312528711,1705942338832,-639.75,0.0005726,120]
[312528712,1705942338842,-822.29,0.0005726,120]
[312528713,1705942338851,-1538.69,0.0005726,120]
[312528714,1705942338860,-870.0,0.0005726,120]
[312528715,1705942338869,-1693.8,0.0005726,120]
[312528716,1705942338878,-963.73,0.0005726,120]
[312528717,1705942338887,-500.0,0.0005726,120]
[312528718,1705942338896,-789.83,0.0005726,120]
[312528719,1705942338905,-500.0,0.0005726,120]
[312528720,1705942338915,-1271.78,0.0005726,120]
[312528721,1705942338924,-628.56,0.0005726,120]
[312528722,1705942338933,-500.0,0.0005726,120]
[312528723,1705942338942,-869.58,0.0005726,120]
[312528724,1705942338951,-500.0,0.0005726,120]
[312528725,1705942338960,-870.17,0.0005726,120]
[312528726,1705942338969,-599.89,0.0005726,120]
[312528727,1705942338978,-766.25,0.0005726,120]
[312528728,1705942338987,-500.0,0.0005726,120]
[312528729,1705942338996,-1159.8,0.0005726,120]
[312528730,1705942339005,-941.19,0.0005726,120]
[312528731,1705942339014,-500.0,0.0005726,120]
[312528732,1705942339023,-500.0,0.0005726,120]
[312528733,1705942339032,-658.14,0.0005726,120]
[312528734,1705942339041,-746.01,0.0005726,120]
[312528735,1705942339050,-944.11,0.0005726,120]
[312528736,1705942339058,-1125.33,0.0005726,120]
[312528737,1705942339067,-898.57,0.0005726,120]
[312528738,1705942339076,-500.0,0.0005726,120]
[312528739,1705942339086,-1108.3,0.0005726,120]
[312528740,1705942339095,-847.08,0.0005726,120]
[312528741,1705942339105,-561.47,0.0005726,120]
[312528742,1705942339114,-2189.22,0.0005726,120]
[312528743,1705942339123,-15010.01,0.0005726,120]
[312528744,1705942339133,-220.10670338,0.0005726,120]
[312528745,1705942339142,-853.26,0.0005726,120]
[312528746,1705942339151,-557.25,0.0005726,120]
[312528747,1705942339161,-547.35,0.0005726,120]
[312528748,1705942339171,-4920.11,0.0005726,120]
[312528749,1705942339179,-500.0,0.0005726,120]
[312528750,1705942339188,-936.9,0.0005726,120]
[312528751,1705942339197,-872.89,0.0005726,120]
[312528752,1705942339207,-613.62,0.0005726,120]
[312528753,1705942339216,-573.26,0.0005726,120]
[312528754,1705942339226,-500.0,0.0005726,120]
[312528755,1705942339235,-568.85,0.0005726,120]
[312528756,1705942339244,-538.35112351,0.0005726,120]
[312528757,1705942339254,-2055.2,0.0005726,120]
[312528758,1705942339263,-1090.04,0.0005726,120]
[312528759,1705942339272,-1584.68,0.0005726,120]
[312528760,1705942339282,-1225.33,0.0005726,120]
[312528761,1705942339292,-500.0,0.0005726,120]
[312528762,1705942339301,-812.84,0.0005726,120]
[312528763,1705942339311,-9707.12,0.0005726,120]
[312528764,1705942339320,-1954.82,0.0005726,120]
[312528765,1705942339330,-990.92,0.0005726,120]
[312528766,1705942339339,-660.76,0.0005726,120]
[312528767,1705942339348,-731.34,0.0005726,120]
[312528768,1705942339357,-500.0,0.0005726,120]
[312528769,1705942339367,-500.0,0.0005726,120]
[312528770,1705942339376,-903.89,0.0005726,120]
[312528771,1705942339386,-875.43,0.0005726,120]
[312528772,1705942339395,-1374.95,0.0005726,120]
[312528773,1705942339405,-500.0,0.0005726,120]
[312528774,1705942339415,-662.41,0.0005726,120]
[312528775,1705942339424,-500.0,0.0005726,120]
[312528776,1705942339433,-959.86,0.0005726,120]
[312528777,1705942339442,-500.0,0.0005726,120]
[312528778,1705942339451,-543.78,0.0005726,120]
[312528779,1705942339460,-514.24,0.0005726,10]
[312528780,1705942339469,-500.0,0.0005726,120]
[312528781,1705942339478,-723.5,0.0005726,120]
[312528782,1705942339491,-500.0,0.0005726,120]
[312528783,1705942339502,-680.76,0.0005726,120]
[312528784,1705942339511,-767.63,0.0005726,120]
[312528785,1705942339520,-699.54,0.0005726,120]
[312528786,1705942339531,-1748.34,0.0005726,120]
[312528787,1705942339540,-780.8,0.0005726,120]
[312528788,1705942339550,-674.41,0.0005726,120]
[312528789,1705942339560,-795.91,0.0005726,120]
[312528790,1705942339569,-526.37,0.0005726,2]
[312528791,1705942339578,-500.0,0.0005726,120]
[312528792,1705942339590,-667.0,0.0005726,120]
[312528793,1705942339599,-500.0,0.0005726,120]
[312528794,1705942339609,-669.33,0.0005726,120]
[312528795,1705942339619,-568.69,0.0005726,120]
[312528796,1705942339628,-2117.65,0.0005726,120]
[312528797,1705942339638,-607.89,0.0005726,120]
[312528798,1705942339648,-1000.0,0.0005726,2]
[312528799,1705942339658,-968.34,0.0005726,120]
[312528800,1705942339668,-554.18,0.0005726,120]
[312528801,1705942339677,-779.2,0.0005726,120]
[312528802,1705942339686,-663.62,0.0005726,120]
[312528803,1705942339695,-917.47,0.0005726,120]
[312528804,1705942339705,-931.15,0.0005726,120]
[312528805,1705942339714,-500.0,0.0005726,120]
[312528806,1705942339723,-305.15299624,0.0005726,120]
[312528807,1705942339733,-500.0,0.0005726,120]
[312528808,1705942339742,-500.0,0.0005726,120]
[312528809,1705942339752,-500.0,0.0005726,120]
[312528810,1705942339762,-7567.95,0.0005726,5]
[312528811,1705942339771,-1123.98,0.0005726,120]
[312528812,1705942339780,-674.69,0.0005726,120]
[312528813,1705942339790,-1147.57,0.0005726,120]
[312528814,1705942339800,-984.05,0.0005726,120]
[312528815,1705942339809,-1203.54,0.0005726,120]
[312528816,1705942339819,-1141.4,0.0005726,120]
[312528817,1705942339828,-3747.78,0.0005726,120]
[312528818,1705942339838,-500.0,0.0005726,120]
[312528819,1705942339847,-845.71,0.0005726,120]
[312528820,1705942339857,-566.43,0.0005726,120]
[312528821,1705942339867,-500.0,0.0005726,120]
[312528822,1705942339877,-700.95,0.0005726,120]
[312528823,1705942339887,-500.0,0.0005726,120]
[312528824,1705942339896,-1493.6,0.0005726,120]
[312528825,1705942339905,-665.32,0.0005726,120]
[312528826,1705942339915,-2461.03,0.0005726,120]
[312528827,1705942339924,-500.0,0.0005726,120]
[312528828,1705942339934,-500.0,0.0005726,120]
[312528829,1705942339943,-902.4,0.0005726,120]
[312528830,1705942339953,-1243.93,0.0005726,120]
[312528831,1705942339963,-1453.38,0.0005726,120]
[312528832,1705942339972,-5152.1,0.0005726,120]
[312528833,1705942339981,-1208.07,0.0005726,120]
[312528834,1705942339991,-684.0,0.0005726,3]
[312528835,1705942340000,-264.0,0.0005726,7]
[312528836,1705942340009,-2110.0,0.00057356,15]
[312528837,1705942340019,-152.4684818,0.0005739,30]
[312528838,1705942340029,-304.4094531,0.0005739,30]
[312528839,1705942340039,-213.80276045,0.0005739,30]
[312528840,1705942340049,-205.0,0.000574,48]
[312528841,1705942340059,-150.0,0.00057455,28]
[312528842,1705942340069,-150.0,0.00057455,28]
[312528843,1705942340079,-1350.0,0.00057475,70]
[312528844,1705942340088,-271.65048844,0.0005749,42]
[312528845,1705942340097,-318659.55388048,0.000575,120]
[312528846,1705942340770,-353.15536203,0.000575,120]
[312528847,1705942340782,-806.13027767,0.000575,120]
[312528848,1705942340802,-386.19889246,0.000575,120]
[312528849,1705942341417,-179.55333549,0.00054694,2]
[312528850,1705942341427,-500.0,0.00054794,120]
[312528851,1705942341437,-16150.25555381,0.000575,120]
[312528852,1705942341449,-1004.8345384,0.000575,120]
[312528853,1705942341461,-2460.34985828,0.000575,120]
[312528854,1705942341474,-1090.02164514,0.000575,120]
[312528855,1705942341487,-262.79677064,0.000575,120]
[312528856,1705942341501,-2924.56696168,0.000575,120]
[312528857,1705942341540,-109650.78802561,0.000575,120]
[312528858,1705942341553,-236233.97348968,0.000575,120]
[312528859,1705942341566,-562.44851433,0.000575,120]
[312528860,1705942341580,-4722.26924474,0.000575,120]
[312528861,1705942341593,-4067.28728259,0.000575,120]
[312528862,1705942341774,-500.0,0.00055068,120]
[312528863,1705942341785,-481.33783082,0.000575,120]
[312528864,1705942341798,-525.00954555,0.000575,120]
[312528865,1705942341811,-8808.51945345,0.000575,120]
[312528866,1705942342144,-365.29236329,0.000575,120]
[312528867,1705942342228,-446.73492976,0.000575,120]
[312528868,1705942342248,-500.0,0.00055342,120]
[312528869,1705942342257,-1956.82552027,0.000575,120]
[312528870,1705942342269,-507.53028692,0.000575,120]
[312528871,1705942342321,-2659.37169153,0.000575,120]
[312528872,1705942342340,-23512.80881379,0.000575,120]
[312528873,1705942342351,-9437.32544481,0.000575,120]
[312528874,1705942342428,-251964.61382227,0.000575,120]
[312528875,1705942342438,-2000.0,0.000575,90]
[312528876,1705942342448,-4014.14656624,0.000575,120]
[312528877,1705942342458,-279.66955,0.000575,120]
[312528878,1705942342467,-279.669553,0.000575,120]
[312528879,1705942342477,-151.0,0.000575,120]
[312528880,1705942342491,-151.0,0.00057534,120]
[312528881,1705942342504,-181.426524,0.00057534,120]
[312528882,1705942342514,-181.426524,0.00057534,120]
[312528883,1705942342524,-181.426524,0.00057534,120]
[312528884,1705942342535,-181.42652322,0.00057534,120]
[312528885,1705942342544,-500.0,0.00057534,30]
[312528886,1705942342554,-507.42209445,0.00057534,7]
[312528887,1705942342563,-969.16,0.00057534,120]
[312528888,1705942342573,-1512.15042891,0.00057534,120]
[312528889,1705942342585,-2982.59824858,0.00057534,120]
[312528890,1705942342596,-2537.20783044,0.00057534,120]
[312528891,1705942342607,-1751.89264826,0.00057534,120]
[312528892,1705942342618,-1114.27390428,0.00057534,120]
[312528893,1705942342631,-2682.98693953,0.00057534,120]
[312528894,1705942342640,-768.74,0.00057534,120]
[312528895,1705942342650,-500.0,0.00057534,120]
[312528896,1705942342660,-500.0,0.00057534,120]
[312528897,1705942342670,-500.0,0.00057534,120]
[312528898,1705942342680,-500.0,0.00057534,120]
[312528899,1705942342690,-500.0,0.00057534,120]
[312528900,1705942342699,-665.43,0.00057534,120]
[312528901,1705942342708,-719.77,0.00057534,120]
[312528902,1705942342717,-500.0,0.00057534,120]
[312528903,1705942342728,-807.38,0.00057534,120]
[312528904,1705942342738,-501.06,0.00057534,120]
[312528905,1705942342748,-500.0,0.00057534,120]
[312528906,1705942342757,-614.6,0.00057534,120]
[312528907,1705942342767,-673.42,0.00057534,120]
[312528908,1705942342776,-575.84,0.00057534,120]
[312528909,1705942342785,-500.0,0.00057534,120]
[312528910,1705942342794,-616.04,0.00057534,120]
[312528911,1705942342803,-810.82,0.00057534,120]
[312528912,1705942342813,-500.0,0.00057534,120]
[312528913,1705942342822,-659.18,0.00057534,2]
[312528914,1705942342831,-568.29,0.00057534,120]
[312528915,1705942342840,-500.0,0.00057534,120]
[312528916,1705942342850,-543.82,0.00057534,120]
[312528917,1705942342859,-589.84,0.00057534,120]
[312528918,1705942342869,-500.0,0.00057534,2]
[312528919,1705942342878,-500.0,0.00057534,120]
[312528920,1705942342887,-500.0,0.00057534,120]
[312528921,1705942342897,-618.43,0.00057534,120]
[312528922,1705942342906,-500.0,0.00057534,120]
[312528923,1705942342917,-500.0,0.00057534,120]
[312528924,1705942342926,-503.21,0.00057534,120]
[312528925,1705942342935,-500.0,0.00057534,120]
[312528926,1705942342945,-548.09,0.00057534,120]
[312528927,1705942342954,-248.93523062,0.00057534,120]
[312528928,1705942342963,-573.23413721,0.00057534,120]
[312528929,1705942342972,-500.0,0.00057534,120]
[312528930,1705942342982,-500.0,0.00057534,120]
[312528931,1705942342991,-500.0,0.00057534,120]
[312528932,1705942343001,-635.0,0.00057534,120]
[312528933,1705942343010,-500.0,0.00057534,120]
[312528934,1705942343020,-826.62,0.00057534,120]
[312528935,1705942343029,-593.99,0.00057534,120]
[312528936,1705942343038,-500.0,0.00057534,120]
[312528937,1705942343048,-500.0,0.00057534,120]
[312528938,1705942343058,-500.0,0.00057534,120]
[312528939,1705942343067,-503.77,0.00057534,120]
[312528940,1705942343076,-500.0,0.00057534,120]
[312528941,1705942343086,-584.08,0.00057534,120]
[312528942,1705942343095,-500.0,0.00057534,120]
[312528943,1705942343104,-1733.58,0.00057534,120]
[312528944,1705942343114,-500.0,0.00057534,120]
[312528945,1705942343124,-500.0,0.00057534,120]
[312528946,1705942343133,-500.0,0.00057534,120]
[312528947,1705942343142,-500.0,0.00057534,120]
[312528948,1705942343151,-538.86,0.00057534,120]
[312528949,1705942343160,-500.0,0.00057534,120]
[312528950,1705942343170,-517.5,0.00057534,120]
[312528951,1705942343180,-873.69,0.00057534,120]
[312528952,1705942343189,-500.0,0.00057534,120]
[312528953,1705942343198,-557.04,0.00057534,120]
[312528954,1705942343207,-500.0,0.00057534,120]
[312528955,1705942343216,-500.0,0.00057534,120]
[312528956,1705942343226,-500.0,0.00057534,120]
[312528957,1705942343235,-500.0,0.00057534,120]
[312528958,1705942343244,-727.32,0.00057534,120]
[312528959,1705942343253,-500.0,0.00057534,120]
[312528960,1705942343263,-500.0,0.00057534,120]
[312528961,1705942343272,-791.21,0.00057534,120]
[312528962,1705942343281,-500.0,0.00057534,120]
[312528963,1705942343290,-903.36,0.00057534,120]
[312528964,1705942343299,-500.0,0.00057534,120]
[312528965,1705942343308,-594.65,0.00057534,120]
[312528966,1705942343317,-617.64,0.00057534,120]
[312528967,1705942343327,-720.46,0.00057534,120]
[312528968,1705942343336,-986.04,0.00057534,120]
[312528969,1705942343345,-723.96,0.00057534,120]
[312528970,1705942343354,-519.85,0.00057534,120]
[312528971,1705942343364,-500.0,0.00057534,120]
[312528972,1705942343373,-500.0,0.00057534,120]
[312528973,1705942343381,-1096.6,0.00057534,120]
[312528974,1705942343391,-588.47005294,0.00057534,120]
[312528975,1705942343400,-1001.01,0.00057534,120]
[312528976,1705942343409,-500.0,0.00057534,120]
[312528977,1705942343419,-500.0,0.00057534,120]
[312528978,1705942343428,-500.0,0.00057534,120]
[312528979,1705942343438,-500.0,0.00057534,2]
[312528980,1705942343447,-748.21,0.00057534,120]
[312528981,1705942343457,-601.52,0.00057534,120]
[312528982,1705942343466,-757.21,0.00057534,120]
[312528983,1705942343475,-500.0,0.00057534,120]
[312528984,1705942343484,-381.77,0.00057534,2]
[312528985,1705942343495,-578.69,0.00057534,120]
[312528986,1705942343506,-690.74,0.00057534,120]
[312528987,1705942343515,-500.0,0.00057534,120]
[312528988,1705942343524,-655.68,0.00057534,120]
[312528989,1705942343535,-815.64,0.00057534,120]
[312528990,1705942343545,-535.82,0.00057534,120]
[312528991,1705942343554,-500.0,0.00057534,120]
[312528992,1705942343563,-987.66,0.00057534,120]
[312528993,1705942343573,-1207.6,0.00057534,120]
[312528994,1705942343583,-799.27,0.00057534,120]
[312528995,1705942343592,-509.48,0.00057534,120]
[312528996,1705942343602,-1236.74,0.00057534,120]
[312528997,1705942343611,-500.0,0.00057534,120]
[312528998,1705942343621,-794.46,0.00057534,120]
[312528999,1705942343631,-676.21,0.00057534,120]
[312529000,1705942343641,-500.0,0.00057534,120]
[312529001,1705942343650,-784.83,0.00057534,120]
[312529002,1705942343660,-1206.35,0.00057534,120]
[312529003,1705942343672,-940.83,0.00057534,120]
[312529004,1705942343682,-500.0,0.00057534,7]
[312529005,1705942343692,-766.88,0.00057534,120]
[312529006,1705942343701,-500.0,0.00057534,120]
[312529007,1705942343711,-882.54,0.00057534,2]
[312529008,1705942343721,-1098.14,0.00057534,120]
[312529009,1705942343730,-1272.77,0.00057534,120]
[312529010,1705942343739,-855.01,0.00057534,120]
[312529011,1705942343749,-1433.57,0.00057534,120]
[312529012,1705942343759,-500.0,0.00057534,120]
[312529013,1705942343768,-500.0,0.00057534,120]
[312529014,1705942343778,-1004.38,0.00057534,120]
[312529015,1705942343787,-613.63,0.00057534,120]
[312529016,1705942343797,-500.0,0.00057534,120]
[312529017,1705942343807,-511.59,0.00057534,120]
[312529018,1705942343817,-851.13,0.00057534,120]
[312529019,1705942343827,-933.89,0.00057534,120]
[312529020,1705942343836,-711.76,0.00057534,120]
[312529021,1705942343846,-572.52,0.00057534,120]
[312529022,1705942343857,-773.03,0.00057534,120]
[312529023,1705942343867,-1058.65,0.00057534,120]
[312529024,1705942343877,-762.64,0.00057534,120]
[312529025,1705942343887,-500.0,0.00057534,120]
[312529026,1705942343900,-509.59,0.00057534,120]
[312529027,1705942343910,-1002.76,0.00057534,120]
[312529028,1705942343921,-665.88,0.00057534,120]
[312529029,1705942343930,-571.24527479,0.00057534,120]
[312529030,1705942343940,-827.04,0.00057534,120]
[312529031,1705942343949,-500.0,0.00057534,120]
[312529032,1705942343959,-904.02,0.00057534,120]
[312529033,1705942343969,-704.08,0.00057534,120]
[312529034,1705942343979,-787.53,0.00057534,120]
[312529035,1705942343988,-872.35,0.00057534,120]
[312529036,1705942343998,-1047.73,0.00057534,120]
[312529037,1705942344007,-500.0,0.00057534,120]
[312529038,1705942344016,-500.0,0.00057534,120]
[312529039,1705942344026,-973.07,0.00057534,120]
[312529040,1705942344036,-1055.58,0.00057534,120]
[312529041,1705942344045,-500.0,0.00057534,120]
[312529042,1705942344054,-592.41,0.00057534,120]
[312529043,1705942344064,-500.0,0.00057534,120]
[312529044,1705942344074,-1284.43,0.00057534,120]
[312529045,1705942344083,-500.0,0.00057534,120]
[312529046,1705942344093,-1139.91,0.00057534,120]
[312529047,1705942344103,-562.17,0.00057534,120]
[312529048,1705942344113,-539.03,0.00057534,120]
[312529049,1705942344123,-500.0,0.00057534,120]
[312529050,1705942344132,-1374.87,0.00057534,120]
[312529051,1705942344141,-750.36,0.00057534,120]
[312529052,1705942344150,-711.43,0.00057534,120]
[312529053,1705942344160,-579.03,0.00057534,120]
[312529054,1705942344171,-500.0,0.00057534,120]
[312529055,1705942344180,-1076.02,0.00057534,120]
[312529056,1705942344190,-500.0,0.00057534,120]
[312529057,1705942344199,-1080.86,0.00057534,120]
[312529058,1705942344208,-559.5,0.00057534,120]
[312529059,1705942344217,-500.0,0.00057534,120]
[312529060,1705942344227,-1198.92,0.00057534,120]
[312529061,1705942344245,-546.17,0.00057534,120]
[312529062,1705942344257,-1032.79,0.00057534,120]
[312529063,1705942344266,-912.89,0.00057534,120]
[312529064,1705942344276,-1291.04,0.00057534,120]
[312529065,1705942344287,-719.62,0.00057534,120]
[312529066,1705942344296,-1228.18,0.00057534,120]
[312529067,1705942344306,-404.97774017,0.00057534,120]
[312529068,1705942344315,-1064.71,0.00057534,120]
[312529069,1705942344324,-933.5,0.00057534,120]
[312529070,1705942344334,-500.0,0.00057534,120]
[312529071,1705942344343,-539.90005609,0.00057534,120]
[312529072,1705942344353,-500.0,0.00057534,120]
[312529073,1705942344362,-1092.85,0.00057534,120]
[312529074,1705942344371,-512.46,0.00057534,120]
[312529075,1705942344381,-1122.93,0.00057534,120]
[312529076,1705942344391,-834.87,0.00057534,120]
[312529077,1705942344400,-1098.97,0.00057534,120]
[312529078,1705942344410,-500.0,0.00057534,120]
[312529079,1705942344421,-500.0,0.00057534,120]
[312529080,1705942344431,-1124.27,0.00057534,120]
[312529081,1705942344441,-548.35,0.00057534,120]
[312529082,1705942344452,-676.24,0.00057534,120]
[312529083,1705942344461,-1234.09,0.00057534,120]
[312529084,1705942344471,-1183.29,0.00057534,120]
[312529085,1705942344481,-500.0,0.00057534,120]
[312529086,1705942344492,-500.0,0.00057534,120]
[312529087,1705942344502,-942.51,0.00057534,120]
[312529088,1705942344512,-539.8,0.00057534,120]
[312529089,1705942344522,-500.0,0.00057534,120]
[312529090,1705942344531,-1200.35,0.00057534,120]
[312529091,1705942344541,-995.47,0.00057534,120]
[312529092,1705942344551,-1034.97,0.00057534,120]
[312529093,1705942344560,-500.0,0.00057534,120]
[312529094,1705942344570,-874.88,0.00057534,120]
[312529095,1705942344581,-507.23,0.00057534,120]
[312529096,1705942344592,-562.05,0.00057534,120]
[312529097,1705942344601,-514.2,0.00057534,120]
[312529098,1705942344611,-500.0,0.00057534,120]
[312529099,1705942344620,-1038.58,0.00057534,120]
[312529100,1705942344629,-1546.51,0.00057534,2]
[312529101,1705942344638,-1166.09,0.00057534,120]
[312529102,1705942344648,-552.78,0.00057534,120]
[312529103,1705942344658,-916.75,0.00057534,120]
[312529104,1705942344669,-825.25,0.00057534,120]
[312529105,1705942344678,-731.13,0.00057534,120]
[312529106,1705942344688,-703.42,0.00057534,120]
[312529107,1705942344698,-597.16,0.00057534,120]
[312529108,1705942344707,-692.04,0.00057534,120]
[312529109,1705942344717,-609.93,0.00057534,120]
[312529110,1705942344726,-500.0,0.00057534,120]
[312529111,1705942344736,-604.43,0.00057534,120]
[312529112,1705942344747,-668.81,0.00057534,120]
[312529113,1705942344756,-435.51,0.00057534,120]
[312529114,1705942344766,-820.72,0.00057534,120]
[312529115,1705942344775,-500.0,0.00057534,2]
[312529116,1705942344785,-510.66,0.00057534,120]
[312529117,1705942344795,-1104.92,0.00057534,120]
[312529118,1705942344805,-500.0,0.00057534,120]
[312529119,1705942344814,-150.0,0.00057534,14]
[312529120,1705942344823,-611.57,0.00057534,120]
[312529121,1705942344832,-500.0,0.00057534,120]
[312529122,1705942344841,-705.3,0.00057534,120]
[312529123,1705942344850,-782.46,0.00057534,120]
[312529124,1705942344860,-1193.75,0.00057534,120]
[312529125,1705942344869,-500.0,0.00057534,120]
[312529126,1705942344879,-841.24,0.00057534,120]
[312529127,1705942344888,-774.06,0.00057534,120]
[312529128,1705942344898,-500.0,0.00057534,120]
[312529129,1705942344907,-706.09,0.00057534,120]
[312529130,1705942344916,-1049.13,0.00057534,120]
[312529131,1705942344926,-500.0,0.00057534,120]
[312529132,1705942344935,-722.39,0.00057534,120]
[312529133,1705942344944,-500.0,0.00057534,120]
[312529134,1705942344954,-1098.78,0.00057534,120]
[312529135,1705942344963,-1040.43,0.00057534,120]
[312529136,1705942344973,-676.51,0.00057534,120]
[312529137,1705942344982,-800.29,0.00057534,120]
[312529138,1705942344991,-977.04,0.00057534,120]
[312529139,1705942345000,-622.73,0.00057534,120]
[312529140,1705942345009,-812.24,0.00057534,120]
[312529141,1705942345018,-940.44,0.00057534,120]
[312529142,1705942345028,-4003.53,0.00057534,120]
[312529143,1705942345037,-762.89,0.00057534,120]
[312529144,1705942345046,-543.32,0.00057534,120]
[312529145,1705942345056,-683.59,0.00057534,120]
[312529146,1705942345064,-735.35,0.00057534,120]
[312529147,1705942345073,-500.0,0.00057534,120]
[312529148,1705942345082,-7945.75,0.00057534,120]
[312529149,1705942345091,-752.98,0.00057534,120]
[312529150,1705942345101,-1119.94,0.00057534,120]
[312529151,1705942345111,-658.72,0.00057534,120]
[312529152,1705942345120,-590.12,0.00057534,120]
[312529153,1705942345130,-510.16888386,0.00057534,120]
[312529154,1705942345139,-500.0,0.00057534,120]
[312529155,1705942345148,-1197.36,0.00057534,120]
[312529156,1705942345158,-873.76,0.00057534,120]
[312529157,1705942345168,-536.78,0.00057534,120]
[312529158,1705942345177,-500.0,0.00057534,120]
[312529159,1705942345186,-1072.31,0.00057534,120]
[312529160,1705942345196,-500.0,0.00057534,120]
[312529161,1705942345205,-916.28,0.00057534,120]
[312529162,1705942345215,-500.0,0.00057534,120]
[312529163,1705942345224,-894.82,0.00057534,120]
[312529164,1705942345234,-563.54,0.00057534,120]
[312529165,1705942345243,-984.92,0.00057534,120]
[312529166,1705942345252,-2024.59,0.00057534,7]
[312529167,1705942345262,-500.0,0.00057534,120]
[312529168,1705942345272,-500.0,0.00057534,120]
[312529169,1705942345282,-873.84,0.00057534,120]
[312529170,1705942345291,-312.49533923,0.00057534,120]
[312529171,1705942345301,-1503.79,0.00057534,120]
[312529172,1705942345311,-500.0,0.00057534,120]
[312529173,1705942345320,-646.15,0.00057534,120]
[312529174,1705942345329,-781.35,0.00057534,120]